bitfinex/quotes_ETHUSD_20241124
["timestamp","ask_amount","ask_price","bid_price","bid_amount"]
[1732448652978,0.08414167,3358.0,3357.5,0.21233394]
[1732448653182,8.34364784,3358.7,3357.5,0.21233394]
[1732448653404,0.08414167,3357.9,3357.5,0.21233394]
[1732448653611,0.6117,3358.7,3357.5,0.21233394]
[1732448656106,0.6117,3359.3,3357.6,0.55]
[1732448656416,0.08414167,3359.2,3357.7,0.02976882]
[1732448656620,0.6117,3359.1,3357.7,0.02976882]
[1732448656843,0.6117,3359.1,3358.0,0.58345336]
[1732448656988,0.08414167,3359.0,3358.0,0.58345336]
[1732448657188,0.08414167,3359.0,3358.1,0.02977336]
[1732448657730,0.08414167,3359.0,3358.0,0.58345336]
[1732448658141,0.08414167,3359.0,3358.7,3.0]
[1732448658592,0.08414167,3359.0,3358.0,0.58345336]
[1732448658991,0.08414167,3359.0,3358.7,3.0]
[1732448659412,0.6117,3358.9,3357.5,0.02977336]
[1732448659818,0.08414167,3358.8,3357.5,0.02977336]
[1732448660386,0.08414167,3358.8,3357.7,0.58496657]
[1732448660587,0.6117,3358.7,3357.7,0.78766132]
[1732448660791,0.6117,3358.7,3357.7,0.58496657]
[1732448660792,0.69584167,3358.7,3357.7,0.58496657]
[1732448661025,0.69584167,3358.7,3357.8,0.02977548]
[1732448663596,0.69584167,3358.7,3357.7,0.58496657]
[1732448663597,0.69584167,3358.7,3358.6,3.0]
[1732448663923,0.6117,3358.7,3358.6,3.0]
[1732448664434,0.69640818,3358.7,3357.7,0.61474168]
[1732448665243,0.69640818,3358.7,3358.6,3.0]
[1732448665592,0.69640818,3358.7,3357.7,0.61474168]
[1732448665802,0.69640818,3358.7,3357.7,0.81754368]
[1732448666006,0.6117,3358.7,3357.7,0.81754368]
[1732448669450,0.6117,3359.4,3357.8,1.092]
[1732448669656,0.08466816,3358.6,3357.9,0.22072412]
[1732448669807,0.6117,3359.4,3357.9,0.22072412]
[1732448670115,0.6117,3359.4,3359.1,3.0]
[1732448670316,0.6117,3359.4,3357.9,0.22072412]
[1732448670642,0.6117,3359.4,3359.3,3.0]
[1732448670848,0.6117,3359.4,3358.1,0.02976891]
[1732448671007,0.6117,3359.4,3359.3,3.0]
[1732448671443,0.6117,3359.4,3358.1,0.02976891]
[1732448671648,0.6117,3359.4,3359.3,3.0]
[1732448672216,0.6117,3359.4,3358.1,0.39413762]
[1732448672617,0.6117,3359.4,3359.3,3.0]
[1732448673027,0.6117,3359.4,3358.1,0.39413762]
[1732448673942,0.08,3359.5,3358.2,1.642]
[1732448674127,0.08,3359.5,3358.4,0.55]
[1732448674328,0.08,3359.5,3358.5,0.02976349]
[1732448677469,0.08,3359.5,3358.6,0.02976731]
[1732448677664,0.4978,3359.7,3358.6,0.02976731]
[1732448677832,0.08466816,3359.6,3358.6,0.02976731]
[1732448678230,0.08466816,3359.6,3358.4,0.02976733]
[1732448679328,0.08466816,3359.6,3358.9,0.58684832]
[1732448679758,0.4978,3359.7,3358.4,0.02976733]
[1732448680471,0.4978,3359.7,3359.6,3.0]
[1732448680937,0.4978,3359.7,3358.4,0.63513172]
[1732448681132,0.58295743,3359.7,3358.4,0.63513172]
[1732448684451,0.58295743,3359.7,3358.5,0.9399]
[1732448684650,0.58295743,3359.7,3358.6,0.22341079]
[1732448684876,0.4978,3359.7,3358.6,0.22341079]
[1732448687869,0.08512667,3359.6,3358.6,0.22341079]
[1732448694069,0.4978,3359.7,3358.6,0.22341079]
[1732448695101,0.08,3359.7,3358.9,0.2968]
[1732448695280,0.4178,3360.3,3359.0,0.21441924]
[1732448695281,0.4978,3360.3,3359.0,0.21441924]
[1732448695678,0.4978,3360.3,3359.1,0.60640966]
[1732448695886,0.4978,3360.3,3359.2,0.02975902]
[1732448698826,0.4978,3360.3,3359.8,0.605044]
[1732448699889,0.4978,3360.3,3359.2,0.02975902]
[1732448700523,0.4978,3360.3,3359.0,0.53923514]
[1732448700933,0.4978,3360.3,3359.0,0.35457514]
[1732448701135,0.4978,3360.3,3359.0,0.60719913]
[1732448703243,0.4978,3360.3,3358.5,0.02976498]
[1732448703531,0.3536,3359.9,3358.4,0.35999512]
[1732448703833,0.55,3359.8,3358.4,0.60078881]
[1732448704130,0.55,3359.8,3357.7,0.957]
[1732448704131,0.3536,3359.5,3357.8,0.02976913]
[1732448704632,0.3536,3359.3,3357.8,0.02976913]
[1732448704997,0.08525586,3359.2,3358.2,0.59748464]
[1732448705331,0.3536,3359.1,3358.2,0.59748464]
[1732448705538,0.3536,3359.1,3357.7,0.38354084]
[1732448705842,7.73194784,3359.6,3357.7,0.54727846]
[1732448705843,0.3536,3358.9,3357.7,0.54727846]
[1732448705993,0.3536,3358.9,3357.7,0.38354438]
[1732448706294,0.3536,3358.7,3357.7,0.35377034]
[1732448706494,0.08504353,3358.6,3357.7,0.58281771]
[1732448706801,0.3536,3358.5,3357.7,0.58281771]
[1732448707216,0.08504045,3358.4,3357.7,0.58281771]
[1732448708337,0.3536,3358.3,3357.7,0.58281771]
[1732448708752,8.33032319,3359.4,3357.2,0.02977334]
[1732448708753,0.3536,3358.1,3357.2,0.02977334]
[1732448708954,0.3536,3358.1,3357.1,0.96742947]
[1732448709239,0.3536,3358.1,3357.1,0.60342267]
[1732448709798,0.3536,3358.1,3356.8,1.57702749]
[1732448710038,0.3536,3358.1,3356.8,1.83043024]
[1732448710235,0.3536,3358.1,3356.8,1.80064836]
[1732448710438,0.3536,3357.9,3356.8,1.54724561]
[1732448710646,0.3536,3357.9,3356.8,0.35809561]
[1732448710936,0.43834182,3357.8,3356.1,0.02978402]
[1732448711100,0.3536,3357.6,3355.9,0.02978735]
[1732448711295,7.73194784,3357.7,3355.5,0.957]
[1732448711296,0.3536,3357.4,3355.6,0.02979093]
[1732448711697,0.43821862,3357.3,3355.5,0.957]
[1732448711902,0.43821862,3357.3,3355.5,0.60336555]
[1732448712138,0.43821862,3357.3,3355.6,0.02979315]
[1732448712310,0.43821862,3357.3,3355.6,0.98679315]
[1732448712727,7.81656646,3357.3,3355.6,0.98679315]
[1732448713036,0.3536,3357.1,3355.6,1.14580902]
[1732448713450,0.43799678,3357.0,3355.6,1.14580902]
[1732448713807,0.43799678,3357.0,3355.7,1.0016]
[1732448714142,0.08439678,3357.0,3356.0,1.0016]
[1732448714311,0.08439678,3357.0,3356.1,1.16053142]
[1732448714508,0.3536,3357.4,3356.2,1.0016]
[1732448714827,0.3536,3357.4,3356.3,0.57978248]
[1732448715037,0.3536,3357.4,3356.8,0.55]
[1732448715206,0.3536,3357.8,3356.9,0.02978284]
[1732448715707,0.3536,3357.8,3356.7,0.59439467]
[1732448715708,0.3536,3357.6,3356.7,0.02978214]
[1732448715912,0.08357488,3357.5,3356.7,0.02978214]
[1732448716431,0.3536,3357.4,3356.7,0.57978214]
[1732448716645,0.3536,3357.4,3356.8,0.17228104]
[1732448716952,0.3536,3357.4,3356.9,0.55]
[1732448717332,0.08357488,3357.3,3356.9,0.55]
[1732448717814,0.08357488,3357.3,3357.0,0.0297842]
[1732448718522,0.08357488,3357.3,3356.8,0.02978382]
[1732448718725,0.3536,3357.4,3357.0,0.55]
[1732448719527,0.08360261,3357.3,3357.0,0.55]
[1732448720249,0.08360261,3357.3,3356.3,0.02978617]
[1732448720455,0.08360261,3357.3,3355.9,1.03138617]
[1732448720456,0.3536,3357.2,3355.9,1.03138617]
[1732448721006,0.3536,3357.2,3356.2,0.59166745]
[1732448721252,0.3536,3357.2,3356.3,0.02978707]
[1732448721750,0.3536,3357.2,3356.3,0.57978707]
[1732448722356,0.3536,3357.2,3356.3,0.55]
[1732448722555,0.3536,3357.2,3355.9,1.35688311]
[1732448722556,0.3536,3357.2,3355.9,0.35528311]
[1732448722727,0.3536,3357.2,3356.0,0.02978809]
[1732448723052,0.3536,3357.0,3356.0,0.02978809]
[1732448723764,0.3536,3357.0,3355.9,0.0297911]
[1732448723938,0.3536,3357.0,3356.0,0.3609478]
[1732448724137,0.3536,3357.0,3356.1,0.55]
[1732448724348,0.3536,3357.0,3356.1,0.02979111]
[1732448725489,0.3536,3357.0,3355.8,0.02979033]
[1732448726377,0.3536,3356.8,3355.8,0.02979033]
[1732448726937,0.0835256,3356.7,3355.8,0.02979033]
[1732448727477,0.3536,3357.4,3355.8,0.02979033]
[1732448727649,0.0835256,3357.3,3355.9,0.55]
[1732448727862,0.3536,3357.2,3355.9,0.55]
[1732448728236,0.08339308,3357.1,3355.8,0.36661984]
[1732448728473,0.3536,3357.0,3355.0,1.0166]
[1732448728684,0.3536,3356.8,3355.4,1.189831]
[1732448729211,0.3536,3356.6,3355.4,1.189831]
[1732448729344,0.3536,3356.6,3355.4,0.60478215]
[1732448729951,0.3536,3356.4,3355.4,0.60478215]
[1732448730161,0.3536,3356.4,3355.5,0.02979726]
[1732448730483,0.08339,3356.3,3355.5,0.02979726]
[1732448730664,0.08339,3356.3,3355.6,0.16511794]
[1732448730868,0.3536,3356.4,3355.7,0.57979265]
[1732448731883,0.3536,3356.9,3356.0,0.55]
[1732448732051,0.3536,3356.9,3356.2,0.55]
[1732448732246,0.08,3357.0,3356.3,0.02978666]
[1732448732877,0.08,3357.0,3356.4,0.55]
[1732448733092,0.2526,3357.3,3356.5,0.02978599]
[1732448733441,0.2526,3357.3,3356.4,0.55]
[1732448733685,0.1726,3357.2,3356.4,0.55]
[1732448734043,0.08358414,3357.1,3356.4,0.55]
[1732448734399,0.1726,3357.0,3356.4,0.55]
[1732448734861,0.1726,3357.0,3356.5,0.0297888]
[1732448734862,0.08358414,3356.9,3356.5,0.0297888]
[1732448735044,0.1726,3357.0,3356.5,0.0297888]
[1732448735239,0.1726,3357.0,3356.6,0.5545874]
[1732448735446,0.1726,3357.0,3356.7,0.02978497]
[1732448735885,0.2526,3357.3,3356.7,0.02978497]
[1732448736270,0.08,3357.3,3356.8,1.34149692]
[1732448736500,0.2526,3357.9,3356.8,1.34149692]
[1732448736654,0.08,3357.9,3356.8,1.34149692]
[1732448736859,0.08,3357.9,3356.9,0.56281428]
[1732448737106,0.08,3357.9,3357.0,0.02977851]
[1732448737271,0.08,3357.9,3357.0,0.57977851]
[1732448739662,0.08,3357.9,3357.0,0.02977851]
[1732448740203,0.08,3357.9,3356.8,1.0166]
[1732448740204,0.08,3357.9,3357.1,0.61582078]
[1732448740888,0.2526,3358.2,3357.2,0.55]
[1732448741064,0.2526,3358.2,3357.4,0.55]
[1732448741260,0.2526,3358.2,3357.5,0.02978153]
[1732448741681,0.2526,3358.2,3357.4,0.57977844]
[1732448741899,0.2526,3358.2,3357.4,0.55]
[1732448742464,0.2526,3358.2,3357.5,0.02977849]
[1732448742662,0.2526,3358.2,3357.4,0.57977847]
[1732448743089,0.08,3358.2,3357.6,0.55]
[1732448743296,0.08,3358.2,3357.8,0.55]
[1732448743504,0.2526,3358.7,3357.9,0.02977406]
[1732448743896,0.08,3358.7,3357.9,0.02977406]
[1732448744627,0.08,3358.7,3357.5,1.29773635]
[1732448744628,0.1726,3358.6,3358.0,0.55]
[1732448744924,0.08137705,3358.5,3358.0,0.55]
[1732448747182,0.1726,3358.6,3358.0,0.55]
[1732448747336,0.1726,3358.6,3358.1,0.0297766]
[1732448747634,0.1726,3358.6,3358.0,0.55]
[1732448747829,0.1726,3358.6,3358.0,0.91821528]
[1732448749246,0.01599522,3358.4,3358.0,0.91821528]
[1732448749811,0.1726,3358.6,3358.0,0.91821528]
[1732448752073,0.08,3358.7,3358.1,0.9288]
[1732448752229,0.026075,3359.9,3358.2,1.03150153]
[1732448752434,0.026075,3359.9,3358.3,0.02976908]
[1732448752652,0.08168501,3359.8,3358.3,0.02976908]
[1732448752819,0.026075,3359.9,3358.3,0.02976908]
[1732448753018,0.026075,3359.9,3358.5,1.4788]
[1732448753222,0.08175274,3359.8,3358.6,0.02976847]
[1732448753422,0.08175274,3359.8,3358.5,2.10735912]
[1732448753659,0.026075,3359.9,3358.5,2.10735912]
[1732448754027,0.08186969,3359.8,3358.7,0.55]
[1732448754264,0.08186969,3359.8,3358.8,0.02976777]
[1732448754473,0.026075,3359.9,3358.8,0.02976777]
[1732448754758,0.08186969,3359.8,3359.0,0.55]
[1732448754921,0.08186969,3359.8,3359.1,0.02976545]
[1732448755122,0.026075,3359.9,3359.0,0.55]
[1732448755325,0.0926,3359.8,3359.0,0.55]
[1732448756161,0.0926,3359.8,3359.1,0.02976548]
[1732448756364,0.026075,3359.9,3359.1,0.02976548]
[1732448756571,0.026075,3359.9,3359.2,0.55]
[1732448756770,0.026075,3359.9,3359.2,0.579762]
[1732448757076,0.026075,3359.9,3359.1,0.55]
[1732448757370,0.026075,3359.9,3359.0,0.35349705]
[1732448757771,0.026075,3359.9,3358.6,0.02977055]
[1732448757924,0.026075,3359.9,3358.3,0.02976772]
[1732448758125,0.026075,3359.9,3358.4,0.5953116]
[1732448758463,0.08186969,3359.8,3358.4,0.5953116]
[1732448758772,0.026075,3359.9,3358.4,0.5953116]
[1732448759267,0.08223282,3359.8,3358.4,0.5953116]
[1732448759428,0.08223282,3359.8,3358.2,1.29703811]
[1732448759625,0.026075,3359.9,3358.2,1.29703811]
[1732448759861,0.026075,3359.9,3358.3,0.02977323]
[1732448760064,0.08223282,3359.8,3358.3,0.02977323]
[1732448760559,0.026075,3359.9,3358.3,0.02977323]
[1732448760759,0.08223282,3359.8,3358.4,0.9288]
[1732448760932,0.08223282,3359.8,3358.5,0.19196885]
[1732448761141,0.026075,3359.9,3358.5,0.19196885]
[1732448761360,0.026075,3359.9,3358.5,0.22173881]
[1732448761745,0.026075,3359.9,3358.6,0.55]
[1732448762038,0.026075,3359.9,3358.6,1.02005388]
[1732448762370,0.026075,3359.9,3358.6,1.04982315]
[1732448762761,0.026075,3359.9,3358.7,0.8917]
[1732448762926,0.026075,3359.9,3358.8,0.57976603]
[1732448763460,0.026075,3359.9,3358.8,0.55]
[1732448763778,0.026075,3359.9,3359.1,0.55]
[1732448763929,7.73194784,3361.4,3360.6,3.0]
[1732448764270,8.58737544,3361.3,3359.7,0.8917]
[1732448764577,0.08223282,3361.3,3359.7,0.8917]
[1732448765038,0.08223282,3361.3,3360.8,3.0]
[1732448765248,0.08223282,3361.3,3359.8,0.57975722]
[1732448765465,0.86365089,3361.3,3359.8,0.57975722]
[1732448765777,0.08223282,3361.3,3360.9,3.0]
[1732448766066,0.08223282,3361.3,3359.8,0.94323081]
[1732448766275,0.59803228,3361.5,3360.9,3.0]
[1732448766426,0.08254662,3361.2,3360.9,3.0]
[1732448766627,8.32998012,3361.5,3359.8,0.36347413]
[1732448766825,0.08259276,3361.1,3360.9,3.0]
[1732448767130,0.08259276,3361.0,3360.9,3.0]
[1732448767450,8.56494585,3361.4,3359.5,0.57975739]
[1732448767660,0.08259276,3361.0,3359.6,0.15591239]
[1732448767833,0.92629781,3361.3,3359.7,0.55]
[1732448768037,0.08259276,3360.9,3359.7,0.55]
[1732448768236,0.92629781,3361.3,3359.5,0.57975739]
[1732448768454,0.08260813,3360.8,3359.7,0.55]
[1732448768656,0.92562779,3361.2,3359.7,0.55]
[1732448768854,0.08260813,3360.7,3359.9,0.946]
[1732448769066,7.73194784,3362.0,3360.0,0.02975551]
[1732448769376,0.1,3362.4,3361.2,3.0]
[1732448769377,0.77319478,3361.9,3361.2,3.0]
[1732448769696,0.67145315,3361.9,3361.2,3.0]
[1732448770170,0.55,3361.8,3361.2,3.0]
[1732448770556,0.55,3361.8,3360.0,0.02975551]
[1732448770878,0.55,3361.6,3361.2,3.0]
[1732448771165,0.55,3361.6,3360.0,0.02975451]
[1732448771369,0.55,3361.6,3359.9,1.312267]
[1732448771370,0.23538605,3361.5,3359.9,1.312267]
[1732448772230,0.23538605,3361.5,3359.9,1.89685297]
[1732448772849,0.23538605,3361.5,3360.0,0.02975813]
[1732448773246,0.23538605,3361.5,3359.9,1.89685297]
[1732448774154,0.55,3361.4,3359.9,1.89685297]
[1732448774466,0.55,3361.2,3359.9,1.89685297]
[1732448774668,0.55,3361.4,3359.9,1.89685297]
[1732448775002,0.08287879,3361.3,3359.9,1.89685297]
[1732448775216,0.08287879,3361.3,3359.9,2.08653827]
[1732448775368,0.08287879,3361.3,3360.0,0.02975751]
[1732448776559,0.08287879,3361.3,3359.9,2.08653827]
[1732448776894,0.08287879,3361.3,3360.0,0.02975557]
[1732448777113,0.55,3361.2,3359.9,1.312267]
[1732448777273,0.55,3361.2,3359.9,0.366267]
[1732448777454,0.55,3361.0,3359.7,0.946]
[1732448777657,0.55,3361.0,3359.7,1.53074186]
[1732448777967,0.08298334,3360.9,3359.7,1.53074186]
[1732448778170,0.55,3361.0,3359.7,1.53074186]
[1732448778369,0.08298334,3360.9,3359.7,1.53074186]
[1732448778587,0.08298334,3360.9,3359.7,1.68381605]
[1732448778891,7.73194784,3361.6,3359.7,2.04001543]
[1732448779102,0.84208082,3361.7,3359.8,0.02975803]
[1732448779265,0.1,3362.1,3359.8,0.02975803]
[1732448779459,0.08293414,3361.8,3359.8,0.02975803]
[1732448780804,0.55,3361.7,3359.8,0.02975803]
[1732448781104,0.55,3361.7,3359.8,0.02975734]
[1732448781285,0.08293414,3361.6,3359.7,1.88694124]
[1732448781462,0.55,3361.5,3359.7,1.30219938]
[1732448781970,0.1,3361.7,3359.7,1.30219938]
[1732448781971,0.55,3361.3,3359.7,1.30219938]
[1732448782186,0.55,3361.1,3359.7,0.35619938]
[1732448782493,0.55,3360.7,3358.8,0.9019]
[1732448782658,0.08290647,3360.6,3358.7,0.30493641]
[1732448782863,0.55,3360.4,3358.7,0.30493641]
[1732448783186,0.55,3360.4,3358.8,0.35991902]
[1732448783187,0.55,3360.2,3358.8,0.35991902]
[1732448783360,0.08289724,3360.3,3358.8,0.72662465]
[1732448783760,0.08289724,3360.3,3358.9,0.9019]
[1732448783981,0.08289724,3360.3,3359.0,0.88661502]
[1732448784195,0.08289724,3360.3,3359.1,0.9019]
[1732448784415,7.73194784,3361.6,3359.2,0.02976029]
[1732448784561,7.73194784,3361.5,3359.2,0.02976029]
[1732448784761,7.73194784,3361.5,3360.8,3.0]
[1732448784762,0.08289724,3361.4,3360.8,3.0]
[1732448785009,0.08289724,3361.4,3359.3,0.21268006]
[1732448785010,0.08289724,3361.4,3359.4,0.02975753]
[1732448785294,0.55,3361.3,3359.4,0.02975753]
[1732448785671,0.55,3361.4,3359.4,0.60459082]
[1732448785869,0.55,3361.1,3359.4,0.60459082]
[1732448786081,0.08289724,3361.0,3360.8,3.0]
[1732448786304,0.55,3360.9,3359.5,0.02976027]
[1732448786481,0.08289724,3360.8,3359.5,0.02976026]
[1732448786816,0.08289724,3360.8,3359.4,0.63435108]
[1732448787278,0.08289724,3360.8,3359.5,0.9217]
[1732448787469,0.55,3361.4,3361.0,3.0]
[1732448787664,0.55,3361.4,3359.6,0.20663051]
[1732448788111,0.6042904,3361.8,3359.6,0.20663051]
[1732448788272,0.83362382,3361.7,3359.7,0.2099627]
[1732448788676,0.83362382,3361.7,3359.8,0.02975768]
[1732448789004,0.83362382,3361.7,3361.0,3.0]
[1732448789313,0.83362382,3361.7,3361.2,3.0]
[1732448789616,0.59045803,3361.9,3360.3,0.02975334]
[1732448789797,0.59045803,3361.9,3360.2,0.9217]
[1732448789979,0.59045803,3361.9,3360.3,0.02975245]
[1732448790380,0.59045803,3361.9,3360.2,0.9217]
[1732448790604,0.59045803,3361.9,3359.8,0.9217]
[1732448790812,0.59045803,3361.9,3361.3,3.0]
[1732448791011,8.32240587,3361.9,3361.3,3.0]
[1732448791328,1.38224059,3361.8,3361.3,3.0]
[1732448793087,1.38224059,3361.8,3360.3,1.188247]
[1732448793293,9.11418843,3361.8,3360.3,1.188247]
[1732448794219,8.56418843,3361.8,3360.3,1.188247]
[1732448794424,0.91546465,3361.7,3360.3,1.188247]
[1732448795480,0.91546465,3361.7,3360.4,0.9108]
[1732448796605,0.91546465,3361.7,3360.3,1.188247]
[1732448796940,0.55,3361.8,3360.3,1.188247]
[1732448799920,7.83194784,3362.6,3360.3,1.188247]
[1732448800220,0.55,3362.2,3360.3,1.188247]
[1732448800633,0.08323233,3362.1,3360.3,1.188247]
[1732448801143,0.08323233,3362.1,3360.3,1.54821999]
[1732448802149,0.58662566,3362.0,3360.3,1.54821999]
[1732448802334,0.58662566,3362.0,3360.3,2.1558361]
[1732448802643,0.08323233,3361.9,3360.3,2.1558361]
[1732448802821,0.08323233,3361.9,3360.3,1.54821999]
[1732448803612,0.55,3361.8,3360.3,1.54821999]
[1732448804011,0.55,3361.9,3360.3,1.54821999]
[1732448804511,0.55,3361.7,3360.3,1.54821999]
[1732448804853,0.55,3361.7,3360.3,2.15583609]
[1732448805006,0.08323233,3361.6,3360.3,2.15583609]
[1732448805209,0.55,3361.9,3360.3,1.54821999]
[1732448805629,0.55,3361.7,3360.3,1.54821999]
[1732448806018,0.55,3361.9,3360.3,1.54821999]
[1732448806247,0.08331225,3361.6,3360.4,0.45779755]
[1732448806444,0.08329381,3361.8,3360.4,0.45779755]
[1732448806632,0.55,3361.9,3360.4,0.45779755]
[1732448806834,0.08329381,3361.7,3360.5,0.23332991]
[1732448807025,0.55,3362.2,3360.5,0.23332991]
[1732448807349,0.55,3362.0,3360.5,0.23332991]
[1732448807506,0.55,3362.2,3360.5,0.23332991]
[1732448807713,0.55,3362.0,3360.5,0.23332991]
[1732448807914,0.55,3362.0,3361.4,3.0]
[1732448808148,0.55,3362.0,3360.5,0.20357716]
[1732448808149,0.08329381,3361.9,3360.5,0.23332828]
[1732448808447,0.08329381,3361.9,3360.6,0.25071222]
[1732448808623,0.08329381,3361.9,3360.6,1.17551222]
[1732448808823,0.55,3362.5,3360.6,1.17551222]
[1732448809038,0.08329381,3361.8,3360.6,1.17551222]
[1732448809242,1.32319478,3362.5,3360.6,1.17551222]
[1732448809551,0.55,3362.3,3360.6,1.14575947]
[1732448809754,0.55,3362.3,3360.5,0.20357716]
[1732448810054,0.08329381,3362.2,3360.5,0.20357716]
[1732448810810,0.08329381,3362.2,3360.3,1.54821999]
[1732448811643,7.73194784,3362.1,3360.3,1.54821999]
[1732448811844,7.73194784,3362.1,3360.3,0.35997299]
[1732448812040,0.55,3361.9,3359.7,0.9248]
[1732448812295,0.55,3361.7,3361.2,3.0]
[1732448812471,8.28194784,3361.7,3360.2,1.188277]
[1732448812672,0.55,3361.5,3360.2,1.188277]
[1732448813062,0.55,3361.6,3360.2,1.188277]
[1732448813295,0.08339218,3361.4,3360.2,1.188277]
[1732448813573,0.08339218,3361.3,3360.2,1.188277]
[1732448813956,0.08339218,3361.3,3359.8,0.59196917]
[1732448815351,0.08339218,3361.3,3359.8,0.62172767]
[1732448815685,0.08339218,3361.3,3359.8,0.59196917]
[1732448817248,0.08339218,3361.3,3359.9,0.02975846]
[1732448818280,0.08339218,3361.3,3359.8,4.28882694]
[1732448818445,0.08339218,3361.3,3359.7,1.28790803]
[1732448818895,0.08339218,3361.3,3359.8,0.46843695]
[1732448820598,0.08339218,3361.3,3359.7,1.28790803]
[1732448820599,0.55,3361.2,3359.7,0.36310803]
[1732448820890,0.55,3361.2,3359.0,0.9248]
[1732448820891,0.55,3361.0,3359.0,1.51859785]
[1732448821207,0.55,3361.0,3359.0,0.59379785]
[1732448821208,0.55,3360.8,3359.0,0.59379785]
[1732448821364,0.55,3360.6,3359.1,0.02976439]
[1732448821563,0.55,3360.6,3359.0,0.99026788]
[1732448821757,0.08327231,3360.5,3359.1,0.36670563]
[1732448821992,1.40051426,3360.8,3359.1,0.36670563]
[1732448822203,0.55,3360.6,3359.0,0.59379785]
[1732448822405,0.55,3360.6,3359.0,0.30293603]
[1732448822696,0.55,3360.4,3359.0,0.30293603]
[1732448822994,0.55,3360.4,3358.7,1.53188415]
[1732448823197,0.08298331,3360.3,3358.7,1.92835632]
[1732448823496,0.08298331,3360.3,3358.8,0.18368201]
[1732448823661,0.08298331,3360.3,3358.8,0.21344855]
[1732448823862,0.08298331,3360.3,3358.8,0.18368201]
[1732448824060,0.08298331,3360.3,3358.9,0.24654605]
[1732448824491,7.73194784,3360.5,3358.7,0.72012781]
[1732448824703,0.55,3360.1,3358.7,0.35342218]
[1732448824871,7.73194784,3360.0,3357.9,0.30493641]
[1732448825076,7.73194784,3360.0,3357.7,0.9421]
[1732448825077,0.55,3359.8,3357.7,0.9421]
[1732448825262,0.55,3359.8,3357.7,0.59132777]
[1732448825667,0.55,3359.6,3357.8,0.02977615]
[1732448826215,0.08247582,3359.5,3357.9,0.9421]
[1732448826498,0.08247582,3359.5,3359.0,3.0]
[1732448826700,0.08247582,3359.5,3357.8,0.36670563]
[1732448826701,0.55,3359.4,3357.8,0.36131445]
[1732448826922,0.55,3359.6,3357.9,0.02977695]
[1732448827207,0.08242966,3359.3,3357.8,0.36670563]
[1732448827410,0.08242966,3359.3,3357.8,0.59252968]
[1732448828370,0.08242966,3359.3,3357.9,0.36670563]
[1732448828710,0.55,3359.6,3357.6,1.32998403]
[1732448828711,0.55,3359.6,3357.6,0.35810709]
[1732448829006,0.55,3359.1,3357.1,0.87464854]
[1732448829308,0.55,3359.3,3357.2,0.18167485]
[1732448829470,0.55,3359.3,3357.2,0.21145512]
[1732448829670,0.55,3359.1,3357.2,0.18167485]
[1732448829869,0.55,3358.9,3356.9,0.35171473]
[1732448830098,0.55,3358.9,3356.7,0.33619973]
[1732448830278,0.55,3358.7,3356.8,1.08959045]
[1732448830597,0.08228192,3358.6,3356.8,1.42579018]
[1732448830805,0.08228192,3358.6,3356.9,0.33479703]
[1732448831167,0.55,3358.5,3356.9,0.33479703]
[1732448831613,0.55,3358.3,3356.7,0.36429915]
[1732448831798,0.55,3358.3,3356.4,0.55]
[1732448832102,7.73194784,3358.6,3356.2,0.60331179]
[1732448832103,0.55,3358.5,3356.3,0.36080148]
[1732448832313,0.55,3358.1,3356.2,0.60331179]
[1732448832477,0.55,3357.9,3356.2,0.60331179]
[1732448833006,0.55,3357.7,3356.2,0.60331179]
[1732448833181,0.55,3357.9,3356.2,0.60331179]
[1732448833383,0.55,3357.7,3355.7,1.30910354]
[1732448833613,0.55,3357.7,3355.8,0.16118323]
[1732448833798,0.55,3357.5,3355.8,0.16118323]
[1732448834185,0.55,3357.3,3355.8,0.16118323]
[1732448834424,0.55,3357.3,3355.7,0.36700354]
[1732448834584,0.55,3357.3,3355.2,0.367004]
[1732448834786,0.55,3357.1,3355.3,0.77148369]
[1732448834982,0.08115535,3357.2,3355.3,0.77148369]
[1732448835216,7.73194784,3357.8,3355.3,1.07421249]
[1732448835420,0.0808904,3357.1,3355.4,1.2448288]
[1732448835594,0.58868448,3357.9,3355.5,0.02979153]
[1732448835800,0.58868448,3357.9,3355.3,0.43844888]
[1732448835801,0.55,3356.9,3355.3,0.43844888]
[1732448836009,0.55,3356.9,3355.2,0.36277838]
[1732448836316,0.55,3356.9,3354.8,0.58244464]
[1732448836518,7.73194784,3357.7,3354.8,0.58244464]
[1732448836519,0.55,3356.7,3354.9,0.21021361]
[1732448837025,0.08085958,3356.6,3354.9,0.21021361]
[1732448837362,0.08085958,3356.6,3354.9,0.18041251]
[1732448837539,0.55,3356.5,3355.0,0.23473156]
[1732448838410,0.55,3356.5,3354.7,0.35477035]
[1732448838730,0.08070546,3356.4,3354.7,0.02980366]
[1732448839233,7.73194784,3357.1,3354.7,0.02980366]
[1732448839521,1.47225168,3357.0,3354.7,0.02980366]
[1732448841105,1.47225168,3357.0,3354.7,0.35802671]
[1732448841312,1.47225168,3357.0,3354.8,0.02980348]
[1732448842037,1.47225168,3357.0,3354.9,0.9072]
[1732448842237,0.55,3356.8,3356.0,3.0]
[1732448842445,0.55,3356.6,3354.7,0.02979934]
[1732448842602,0.89126595,3356.5,3356.0,3.0]
[1732448842802,0.63065922,3356.4,3354.8,0.0298004]
[1732448843026,8.36260706,3356.4,3354.6,0.60110474]
[1732448843229,8.36260706,3356.4,3354.6,0.63090947]
[1732448843432,0.83626071,3356.3,3354.6,0.60110474]
[1732448843740,0.08063764,3356.2,3354.6,0.60110474]
[1732448843961,0.55,3356.1,3355.7,3.0]
[1732448844104,0.55,3356.1,3354.6,0.60110474]
[1732448844449,0.08061914,3356.0,3354.6,0.60110474]
[1732448844658,0.08061914,3356.0,3354.3,0.36935713]
[1732448844938,0.08061914,3356.0,3353.5,0.02980812]
[1732448844939,0.55,3355.9,3353.5,0.02980812]
[1732448845102,0.55,3355.9,3353.2,0.9072]
[1732448845103,0.55,3355.7,3353.3,1.49959151]
[1732448845304,0.55,3355.7,3353.4,0.24067915]
[1732448845547,0.55,3355.7,3353.3,0.02981107]